fUST/lending_fUST_20250724
["ID","MTS","AMOUNT","RATE_DAILY","PERIOD"]
[374465817,1753311048141,-500.0,0.00021586,2]
[374465819,1753311048151,-500.0,0.00021586,2]
[374465821,1753311048160,-500.0,0.00021586,2]
[374465823,1753311048170,-500.0,0.00021586,2]
[374465825,1753311048182,-502.478894,0.00021586,2]
[374465827,1753311048191,-215.0738,0.00021605,2]
[374465829,1753311048200,-151.0,0.00021605,2]
[374465831,1753311048210,-151.0,0.00021605,2]
[374465832,1753311048221,-151.0,0.00021605,2]
[374465834,1753311048230,-151.0,0.00021605,2]
[374465836,1753311048240,-151.0,0.00021605,2]
[374465838,1753311048249,-151.0,0.00021605,2]
[374465840,1753311048259,-280.55485677,0.00021605,2]
[374465842,1753311048268,-151.0,0.00021605,2]
[374465843,1753311048277,-151.0,0.00021605,2]
[374465845,1753311048287,-151.0,0.00021605,2]
[374465847,1753311048296,-151.0,0.00021605,2]
[374465849,1753311048306,-151.0,0.00021605,2]
[374465851,1753311048315,-151.0,0.00021605,2]
[374465853,1753311048329,-151.0,0.00021605,2]
[374465855,1753311048339,-151.0,0.00021605,2]
[374465856,1753311048348,-151.0,0.00021605,2]
[374465858,1753311048358,-151.0,0.00021605,2]
[374465860,1753311048371,-151.0,0.00021605,2]
[374465862,1753311048380,-3818.04135009,0.00021605,2]
[374465864,1753311048391,-151.0,0.00021605,2]
[374465875,1753311048491,-22769.71930789,0.00021605,2]
[374465877,1753311048513,-3000.0,0.00021618,3]
[374465879,1753311048523,-500.0,0.00021618,2]
[374465880,1753311048533,-500.0,0.00021618,2]
[374465882,1753311048543,-500.0,0.00021618,2]
[374465884,1753311048553,-540.13657752,0.00021618,2]
[374465886,1753311048563,-500.71124233,0.00021618,2]
[374465888,1753311048576,-500.0,0.00021618,2]
[374465890,1753311048586,-500.0,0.00021618,2]
[374465892,1753311048595,-500.0,0.00021618,2]
[374465894,1753311048605,-500.0,0.00021618,2]
[374465896,1753311048614,-168.06222679,0.00021618,2]
[374465898,1753311048623,-500.0,0.00021618,2]
[374465900,1753311048634,-500.0,0.00021618,2]
[374465901,1753311048643,-500.0,0.00021618,2]
[374465903,1753311048653,-161.66149391,0.00021618,2]
[374465905,1753311048663,-1956.52,0.00021643,2]
[374465907,1753311048673,-1590.15,0.00021643,2]
[374465909,1753311048683,-1087.76,0.00021643,2]
[374465911,1753311048692,-460.0,0.00021643,2]
[374465913,1753311048703,-460.0,0.00021643,2]
[374465915,1753311048712,-836.85,0.00021643,2]
[374465917,1753311048721,-479.3,0.00021643,2]
[374465919,1753311048730,-460.0,0.00021643,2]
[374465921,1753311048739,-702.75,0.00021643,2]
[374465923,1753311048749,-460.0,0.00021643,2]
[374465925,1753311048759,-591.4,0.00021643,2]
[374465927,1753311048768,-985.94,0.00021643,2]
[374465928,1753311048778,-615.42,0.00021643,2]
[374465930,1753311048787,-460.0,0.00021643,2]
[374465931,1753311048797,-311.07,0.00021643,2]
[374465933,1753311048806,-460.0,0.00021643,2]
[374465935,1753311048816,-150.0,0.00021698,2]
[374465937,1753311048825,-151.0,0.00021739,2]
[374465939,1753311048834,-151.0,0.00021739,2]
[374465940,1753311048844,-757.45257,0.00021739,2]
[374465942,1753311048853,-757.45257,0.00021739,2]
[374465944,1753311048863,-151.0,0.00021739,2]
[374465946,1753311048872,-289.817656,0.00021739,2]
[374465948,1753311048882,-151.0,0.00021739,2]
[374465950,1753311048891,-180.058266,0.00021739,2]
[374465952,1753311048901,-151.0,0.00021739,2]
[374465953,1753311048910,-151.0,0.00021739,2]
[374465955,1753311048919,-151.0,0.00021739,2]
[374465957,1753311048929,-318.357995,0.00021739,2]
[374465959,1753311048938,-318.357995,0.00021739,2]
[374465961,1753311048947,-274.2,0.0002177,5]
[374465963,1753311048956,-4000.0,0.00021846,3]
[374465965,1753311048966,-1956.52,0.00021917,2]
[374465966,1753311048975,-1590.15,0.00021917,2]
[374465968,1753311048984,-1087.76,0.00021917,2]
[374465970,1753311048994,-460.0,0.00021917,2]
[374465972,1753311049004,-460.0,0.00021917,2]
[374465974,1753311049013,-836.85,0.00021917,2]
[374465976,1753311049023,-479.3,0.00021917,2]
[374465978,1753311049032,-460.0,0.00021917,2]
[374465980,1753311049042,-702.75,0.00021917,2]
[374465982,1753311049051,-460.0,0.00021917,2]
[374465983,1753311049061,-591.4,0.00021917,2]
[374465985,1753311049072,-985.94,0.00021917,2]
[374465987,1753311049081,-615.42,0.00021917,2]
[374465989,1753311049091,-460.0,0.00021917,2]
[374465991,1753311049100,-460.0,0.00021917,2]
[374465993,1753311049109,-360.0,0.00021932,2]
[374465995,1753311049118,-1403.47370104,0.00021933,2]
[374465997,1753311049127,-500.0,0.00021998,2]
[374465998,1753311049136,-1859.34,0.00022,7]
[374466000,1753311049146,-3640.78,0.00022,7]
[374466002,1753311049155,-15752.51,0.00022,7]
[374466004,1753311049164,-5000.0,0.00022018,4]
[374466006,1753311049174,-6944.64018972,0.00022076,2]
[374466008,1753311049183,-274.2,0.00022083,5]
[374466010,1753311049193,-299.77258459,0.0002209,2]
[374466012,1753311049202,-719.84913514,0.0002209,2]
[374466014,1753311049211,-487.26539813,0.0002209,2]
[374466016,1753311049220,-1000.0,0.00022098,2]
[374466018,1753311049230,-597.99224489,0.00022133,2]
[374466019,1753311049240,-1000.0,0.00022133,2]
[374466021,1753311049249,-1000.0,0.00022133,2]
[374466023,1753311049259,-500.0,0.00022133,2]
[374466025,1753311049268,-500.0,0.00022134,2]
[374466027,1753311049277,-1000.0,0.00022134,2]
[374466029,1753311049286,-500.0,0.00022134,2]
[374466031,1753311049295,-506.13422881,0.00022166,2]
[374466033,1753311049305,-500.0,0.00022166,2]
[374466034,1753311049313,-500.01884122,0.00022166,2]
[374466036,1753311049326,-1000.0,0.00022166,2]
[374466038,1753311049338,-1000.0,0.00022166,2]
[374466039,1753311049347,-500.0,0.00022166,2]
[374466041,1753311049357,-500.0,0.00022166,2]
[374466043,1753311049366,-1956.52,0.00022191,2]
[374466045,1753311049376,-1590.15,0.00022191,2]
[374466047,1753311049385,-1087.76,0.00022191,2]
[374466049,1753311049395,-460.0,0.00022191,2]
[374466051,1753311049406,-460.0,0.00022191,2]
[374466052,1753311049415,-836.85,0.00022191,2]
[374466054,1753311049425,-152.709429,0.00022191,2]
[374466056,1753311049435,-479.3,0.00022191,2]
[374466058,1753311049445,-460.0,0.00022191,2]
[374466060,1753311049454,-702.75,0.00022191,2]
[374466062,1753311049463,-460.0,0.00022191,2]
[374466064,1753311049472,-591.4,0.00022191,2]
[374466065,1753311049481,-985.94,0.00022191,2]
[374466067,1753311049490,-615.42,0.00022191,2]
[374466069,1753311049500,-460.0,0.00022191,2]
[374466071,1753311049510,-214.63946406,0.00022191,2]
[374466073,1753311049520,-6000.0,0.00022212,4]
[374466075,1753311049529,-274.2,0.00022396,5]
[374466077,1753311049539,-1956.52,0.00022465,2]
[374466078,1753311049548,-1738.3,0.00022465,2]
[374466080,1753311049557,-1590.15,0.00022465,2]
[374466082,1753311049566,-1087.76,0.00022465,2]
[374466084,1753311049578,-430.68,0.00022465,2]
[374466086,1753311049588,-460.0,0.00022465,2]
[374466088,1753311049597,-836.85,0.00022465,2]
[374466089,1753311049607,-479.3,0.00022465,2]
[374466090,1753311049616,-460.0,0.00022465,2]
[374466091,1753311049626,-702.75,0.00022465,2]
[374466092,1753311049640,-591.4,0.00022465,2]
[374466093,1753311049654,-985.94,0.00022465,2]
[374466094,1753311049668,-615.42,0.00022465,2]
[374466095,1753311049681,-460.0,0.00022465,2]
[374466096,1753311049692,-220.0,0.0002248,2]
[374466097,1753311049705,-151.0,0.0002249,7]
[374466098,1753311049717,-151.0,0.0002249,7]
[374466099,1753311049731,-757.45257,0.0002249,7]
[374466100,1753311049744,-757.45257,0.0002249,7]
[374466101,1753311049757,-151.0,0.0002249,7]
[374466102,1753311049769,-151.0,0.0002249,7]
[374466103,1753311049783,-151.0,0.0002249,7]
[374466104,1753311049798,-151.0,0.0002249,7]
[374466105,1753311049810,-151.0,0.0002249,7]
[374466106,1753311049824,-318.357995,0.0002249,7]
[374466107,1753311049837,-318.357995,0.0002249,7]
[374466108,1753311049849,-4618.9056109,0.00022491,2]
[374466109,1753311049861,-150.0,0.00022642,2]
[374466110,1753311049875,-429.674968,0.00022662,2]
[374466111,1753311049888,-150.54998504,0.00022662,2]
[374466112,1753311050035,-279.12498296,0.00022662,2]
[374466113,1753311050046,-429.674968,0.00022662,2]
[374466114,1753311050057,-429.674968,0.00022662,2]
[374466116,1753311050069,-1068.91834299,0.00022681,2]
[374466117,1753311050081,-1500.0,0.00022682,2]
[374466119,1753311050093,-648.0,0.00022707,2]
[374466121,1753311050106,-2157.0,0.00022707,2]
[374466123,1753311050117,-969.0,0.00022707,2]
[374466125,1753311050127,-274.2,0.00022709,6]
[374466127,1753311050140,-1500.0,0.00022714,2]
[374466130,1753311050152,-1956.52,0.00022739,2]
[374466132,1753311050163,-1590.15,0.00022739,2]
[374466134,1753311050175,-1087.76,0.00022739,2]
[374466136,1753311050186,-386.53,0.00022739,2]
[374466138,1753311050196,-836.85,0.00022739,2]
[374466141,1753311050209,-479.3,0.00022739,2]
[374466143,1753311050220,-460.0,0.00022739,2]
[374466145,1753311050232,-702.75,0.00022739,2]
[374466147,1753311050243,-591.4,0.00022739,2]
[374466149,1753311050254,-985.94,0.00022739,2]
[374466151,1753311050265,-615.42,0.00022739,2]
[374466153,1753311050276,-327.18,0.00022739,2]
[374466156,1753311050287,-152.709429,0.00022868,2]
[374466158,1753311050298,-223.0315306,0.00022974,2]
[374466160,1753311050309,-500.0,0.00022996,8]
[374466162,1753311050320,-151.0,0.00023,7]
[374466164,1753311050333,-151.0,0.00023,7]
[374466166,1753311050344,-1883.67,0.00023,2]
[374466168,1753311050355,-757.45257,0.00023,7]
[374466171,1753311050367,-757.45257,0.00023,7]
[374466173,1753311050378,-151.0,0.00023,7]
[374466175,1753311050389,-151.0,0.00023,7]
[374466177,1753311050400,-151.0,0.00023,7]
[374466179,1753311050413,-151.0,0.00023,7]
[374466181,1753311050424,-273.454314,0.00023,7]
[374466183,1753311050436,-318.357995,0.00023,7]
[374466186,1753311050448,-318.357995,0.00023,7]
[374466188,1753311050458,-150.0,0.00023,10]
[374466190,1753311050468,-160.0,0.00023,3]
[374466192,1753311050477,-152.709429,0.00023,3]
[374466193,1753311050487,-152.709429,0.00023,3]
[374466196,1753311050497,-152.709429,0.00023,10]
[374466197,1753311050507,-160.0,0.00023,3]
[374466200,1753311050517,-160.0,0.00023,2]
[374466201,1753311050527,-1956.52,0.00023013,2]
[374466203,1753311050537,-1590.15,0.00023013,2]
[374466205,1753311050546,-1087.76,0.00023013,2]
[374466208,1753311050556,-836.85,0.00023013,2]
[374466210,1753311050567,-479.3,0.00023013,2]
[374466212,1753311050578,-460.0,0.00023013,2]
[374466214,1753311050587,-702.75,0.00023013,2]
[374466215,1753311050597,-591.4,0.00023013,2]
[374466217,1753311050606,-985.94,0.00023013,2]
[374466219,1753311050616,-615.42,0.00023013,2]
[374466221,1753311050625,-274.2,0.00023022,6]
[374466223,1753311050634,-160.0,0.00023067,3]
[374466225,1753311050644,-15752.51,0.000232,7]
[374466227,1753311050654,-1500.0,0.0002323,2]
[374466230,1753311050664,-1380.96517336,0.00023262,2]
[374466231,1753311050673,-1956.52,0.00023287,2]
[374466233,1753311050683,-1590.15,0.00023287,2]
[374466235,1753311050692,-1087.76,0.00023287,2]
[374466237,1753311050702,-152.709429,0.00023287,7]
[374466239,1753311050711,-152.709429,0.00023287,7]
[374466241,1753311050722,-836.85,0.00023287,2]
[374466243,1753311050731,-479.3,0.00023287,2]
[374466245,1753311050741,-460.0,0.00023287,2]
[374466247,1753311050751,-702.75,0.00023287,2]
[374466249,1753311050760,-591.4,0.00023287,2]
[374466251,1753311050770,-985.94,0.00023287,2]
[374466253,1753311050779,-615.42,0.00023287,2]
[374466255,1753311050789,-3640.78,0.000233,7]
[374466257,1753311050798,-274.2,0.00023335,6]
[374466259,1753311050807,-152.709429,0.00023335,6]
[374466261,1753311050817,-1403.47370104,0.00023361,2]
[374466281,1753311051003,-429.674968,0.0002337,2]
[374466284,1753311051017,-429.674968,0.0002337,2]
[374466286,1753311051027,-429.674968,0.0002337,2]
[374466287,1753311051036,-191.8,0.00023459,2]
[374466290,1753311051047,-152.709429,0.00023471,10]
[374466291,1753311051058,-152.709429,0.00023474,3]
[374466293,1753311051068,-152.709429,0.00023474,3]
[374466295,1753311051079,-152.709429,0.00023545,2]
[374466297,1753311051088,-151.0,0.00023561,7]
[374466299,1753311051097,-318.357995,0.00023561,7]
[374466301,1753311051106,-318.357995,0.00023561,7]
[374466303,1753311051117,-1956.52,0.00023561,2]
[374466305,1753311051127,-1590.15,0.00023561,2]
[374466307,1753311051136,-1087.76,0.00023561,2]
[374466309,1753311051146,-836.85,0.00023561,2]
[374466311,1753311051156,-479.3,0.00023561,2]
[374466313,1753311051165,-200.0,0.00023561,2]
[374466315,1753311051175,-200.0,0.00023561,2]
[374466317,1753311051184,-183.46287209,0.00023561,2]
[374466319,1753311051193,-460.0,0.00023561,2]
[374466321,1753311051203,-702.75,0.00023561,2]
[374466323,1753311051212,-591.4,0.00023561,2]
[374466325,1753311051221,-985.94,0.00023561,2]
[374466327,1753311051230,-615.42,0.00023561,2]
[374466329,1753311051239,-3617.94211178,0.00023563,2]
[374466331,1753311051248,-150.0,0.00023585,2]
[374466332,1753311051258,-500.0,0.00023588,2]
[374466334,1753311051267,-500.0,0.00023634,2]
[374466336,1753311051276,-274.2,0.00023648,6]
[374466338,1753311051285,-1859.34,0.000237,7]
[374466340,1753311051294,-166.0,0.00023759,3]
[374466342,1753311051303,-166.0,0.00023759,3]
[374466344,1753311051314,-166.0,0.00023759,3]
[374466346,1753311051325,-166.0,0.00023759,3]
[374466348,1753311051338,-166.0,0.00023759,3]
[374466350,1753311051347,-191.431774,0.00023759,3]
[374466352,1753311051357,-324.0,0.00023759,3]
[374466355,1753311051378,-324.0,0.00023759,3]
[374466357,1753311051388,-324.0,0.00023759,3]
[374466359,1753311051397,-324.0,0.00023759,3]
[374466360,1753311051406,-324.0,0.00023759,3]
[374466362,1753311051416,-324.0,0.00023759,3]
[374466364,1753311051426,-324.0,0.00023759,3]
[374466366,1753311051435,-168.0,0.00023796,2]
[374466368,1753311051444,-151.0,0.000238,10]
[374466370,1753311051454,-152.709429,0.00023803,7]
[374466372,1753311051463,-152.709429,0.00023803,7]
[374466374,1753311051472,-168.0,0.00023811,2]
[374466376,1753311051482,-197.14,0.00023819,2]
[374466378,1753311051492,-199.0,0.00023833,2]
[374466380,1753311051501,-151.0,0.00023835,7]
[374466382,1753311051511,-151.0,0.00023835,7]
[374466384,1753311051521,-757.45257,0.00023835,7]
[374466386,1753311051530,-757.45257,0.00023835,7]
[374466388,1753311051539,-151.0,0.00023835,7]
[374466390,1753311051548,-151.0,0.00023835,7]
[374466392,1753311051558,-151.0,0.00023835,7]
[374466394,1753311051567,-1956.52,0.00023835,2]
[374466396,1753311051577,-1590.15,0.00023835,2]
[374466398,1753311051587,-1087.76,0.00023835,2]
[374466400,1753311051596,-836.85,0.00023835,2]
[374466402,1753311051605,-479.3,0.00023835,2]
[374466404,1753311051615,-237.55,0.00023835,2]
[374466406,1753311051624,-702.75,0.00023835,2]
[374466408,1753311051634,-591.4,0.00023835,2]
[374466410,1753311051643,-985.94,0.00023835,2]
[374466412,1753311051653,-615.42,0.00023835,2]
[374466414,1753311051662,-261.79773941,0.00023868,12]
[374466416,1753311051671,-428.48845725,0.00023893,12]
[374466418,1753311051680,-826.46657362,0.000239,2]
[374466420,1753311051690,-199.0,0.00023918,2]
[374466422,1753311051699,-199.0,0.00023925,2]
[374466424,1753311051708,-199.0,0.00023929,2]
[374466426,1753311051718,-166.0,0.0002393,3]
[374466428,1753311051727,-160.0,0.0002393,3]
[374466429,1753311051736,-160.0,0.0002393,3]
[374466431,1753311051745,-1753.0,0.0002393,3]
[374466433,1753311051755,-1753.0,0.0002393,3]
[374466435,1753311051764,-1753.0,0.0002393,3]
[374466437,1753311051774,-1753.0,0.0002393,3]
[374466439,1753311051783,-1753.0,0.0002393,3]
[374466441,1753311051793,-1753.0,0.0002393,3]
[374466443,1753311051802,-1753.0,0.0002393,3]
[374466445,1753311051811,-1740.73713352,0.0002393,3]
[374466447,1753311051822,-324.0,0.0002393,3]
[374466449,1753311051831,-324.0,0.0002393,3]
[374466451,1753311051840,-324.0,0.0002393,3]
[374466453,1753311051850,-324.0,0.0002393,3]
[374466455,1753311051861,-324.0,0.0002393,3]
[374466457,1753311051870,-324.0,0.0002393,3]
[374466459,1753311051880,-152.709429,0.00023942,10]
[374466461,1753311051889,-152.709429,0.00023948,3]
[374466463,1753311051899,-152.709429,0.00023948,3]
[374466465,1753311051908,-3617.94211178,0.00023949,2]
[374466467,1753311051918,-274.2,0.00023961,7]
[374466469,1753311051928,-160.0,0.00024,7]
[374466471,1753311051937,-642.0,0.00024,2]
[374466473,1753311051947,-199.0,0.00024001,2]
[374466475,1753311051957,-508.32637467,0.0002403,2]
[374466477,1753311051966,-500.0,0.00024034,2]
[374466479,1753311051976,-199.0,0.0002404,2]
[374466481,1753311051985,-500.0,0.00024042,2]
[374466483,1753311051994,-199.0,0.00024058,2]
[374466485,1753311052008,-199.0,0.00024073,2]
[374466487,1753311052017,-500.0,0.00024093,2]
[374466489,1753311052027,-28997.16,0.000241,2]
[374466491,1753311052037,-1956.52,0.00024109,2]
[374466493,1753311052047,-1590.15,0.00024109,2]
[374466495,1753311052056,-1087.76,0.00024109,2]
[374466497,1753311052066,-836.85,0.00024109,2]
[374466499,1753311052076,-479.3,0.00024109,2]
[374466501,1753311052085,-702.75,0.00024109,2]
[374466503,1753311052094,-591.4,0.00024109,2]
[374466505,1753311052104,-985.94,0.00024109,2]
[374466507,1753311052113,-615.42,0.00024109,2]
[374466509,1753311052123,-500.0,0.0002411,2]
[374466511,1753311052132,-160.0,0.00024138,4]
[374466513,1753311052141,-500.0,0.00024142,2]
[374466515,1753311052151,-199.0,0.00024161,2]
[374466517,1753311052160,-500.0,0.00024165,2]
[374466519,1753311052169,-500.0,0.00024167,2]
[374466521,1753311052178,-191.8,0.00024179,2]
[374466523,1753311052187,-500.0,0.00024186,2]
[374466525,1753311052196,-153.0,0.00024192,2]
[374466527,1753311052206,-153.0,0.00024192,2]
[374466529,1753311052216,-153.0,0.00024192,2]
[374466531,1753311052225,-153.0,0.00024192,2]
[374466533,1753311052235,-6172.65,0.000242,10]
[374466535,1753311052244,-152.709429,0.00024223,2]
[374466537,1753311052253,-500.0,0.00024229,2]
[374466539,1753311052263,-500.0,0.00024238,2]
[374466541,1753311052272,-167.37613978,0.00024256,2]
[374466543,1753311052282,-2200.0,0.00024267,2]
[374466545,1753311052291,-274.2,0.00024274,7]
[374466547,1753311052301,-500.0,0.0002428,2]
[374466549,1753311052310,-15752.51,0.000243,7]
[374466551,1753311052320,-152.709429,0.00024318,7]
[374466552,1753311052332,-152.709429,0.00024318,7]
[374466554,1753311052341,-500.0,0.00024324,2]
[374466556,1753311052350,-500.0,0.00024338,2]
[374466558,1753311052359,-3617.9421118,0.00024342,2]
[374466560,1753311052370,-231.28369723,0.00024343,2]
[374466562,1753311052379,-500.0,0.00024368,2]
[374466564,1753311052388,-1593.36126279,0.00024383,2]
[374466566,1753311052397,-3621.0416622,0.00024383,2]
[374466568,1753311052409,-1956.52,0.00024383,2]
[374466569,1753311052419,-1590.15,0.00024383,2]
[374466570,1753311052428,-1087.76,0.00024383,2]
[374466571,1753311052437,-836.85,0.00024383,2]
[374466572,1753311052446,-479.3,0.00024383,2]
[374466573,1753311052455,-702.75,0.00024383,2]
[374466574,1753311052464,-591.4,0.00024383,2]
[374466575,1753311052474,-985.94,0.00024383,2]
[374466576,1753311052483,-615.42,0.00024383,2]
[374466577,1753311052492,-314.26324,0.0002439,8]
[374466579,1753311052501,-151.0,0.000244,10]
[374466581,1753311052510,-3640.78,0.000244,7]
[374466583,1753311052519,-151.0,0.000244,8]
[374466585,1753311052530,-151.0,0.000244,9]
[374466587,1753311052539,-152.709429,0.00024413,10]
[374466589,1753311052549,-152.709429,0.00024419,6]
[374466590,1753311052558,-152.709429,0.00024419,6]
[374466592,1753311052567,-152.709429,0.00024422,3]
[374466594,1753311052579,-152.709429,0.00024422,3]
[374466596,1753311052589,-500.0,0.00024432,2]
[374466598,1753311052598,-500.0,0.00024453,2]
[374466600,1753311052607,-199.0,0.00024454,2]
[374466602,1753311052616,-168.0,0.00024485,2]
[374466604,1753311052626,-500.0,0.00024486,2]
[374466606,1753311052636,-292.718401,0.000245,7]
[374466608,1753311052646,-292.718401,0.000245,7]
[374466610,1753311052656,-151.0,0.000245,7]
[374466612,1753311052667,-1177.0,0.000245,30]
[374466614,1753311052677,-151.0,0.000245,7]
[374466616,1753311052686,-151.0,0.000245,7]
[374466618,1753311052696,-763.676591,0.000245,7]
[374466620,1753311052705,-763.676591,0.000245,7]
[374466622,1753311052714,-168.0,0.00024505,2]
[374466624,1753311052724,-150.0,0.00024529,2]
[374466626,1753311052733,-199.0,0.00024563,2]
[374466628,1753311052743,-500.0,0.00024575,2]
[374466630,1753311052752,-500.0,0.00024579,2]
[374466632,1753311052761,-274.2,0.00024587,7]
[374466634,1753311052770,-500.0,0.000246,2]
[374466636,1753311052779,-800.0,0.00024601,2]
[374466638,1753311052789,-1150.401182,0.0002464,5]
[374466640,1753311052798,-151.0,0.0002465,2]
[374466642,1753311052807,-79482.60780914,0.0002465,2]
[374466644,1753311052817,-246.894844,0.0002465,7]
[374466646,1753311052828,-246.894844,0.0002465,7]
[374466648,1753311052838,-151.0,0.0002465,7]
[374466650,1753311052848,-151.0,0.0002465,7]
[374466652,1753311052857,-757.45257,0.0002465,7]
[374466654,1753311052866,-757.45257,0.0002465,7]
[374466656,1753311052875,-151.0,0.0002465,7]
[374466658,1753311052884,-151.0,0.0002465,7]
[374466660,1753311052893,-151.0,0.0002465,7]
[374466661,1753311052903,-151.0,0.0002465,7]
[374466664,1753311052912,-318.357995,0.0002465,7]
[374466665,1753311052921,-318.357995,0.0002465,7]
[374466667,1753311052930,-151.0,0.0002465,7]
[374466670,1753311052940,-198.230154,0.00024657,7]
[374466671,1753311052949,-198.230154,0.00024657,7]
[374466674,1753311052958,-151.0,0.00024657,7]
[374466676,1753311052967,-151.0,0.00024657,7]
[374466677,1753311052976,-165.543289,0.00024657,7]
[374466679,1753311052985,-165.543289,0.00024657,7]
[374466681,1753311052994,-1956.52,0.00024657,2]
[374466683,1753311053003,-1590.15,0.00024657,2]
[374466685,1753311053012,-1087.76,0.00024657,2]
[374466687,1753311053022,-836.85,0.00024657,2]
[374466689,1753311053031,-479.3,0.00024657,2]
[374466691,1753311053040,-541.78,0.00024657,2]
[374466693,1753311053050,-541.78,0.00024657,2]
[374466695,1753311053059,-541.78,0.00024657,2]
[374466697,1753311053068,-541.78,0.00024657,2]
[374466699,1753311053080,-541.78,0.00024657,2]
[374466701,1753311053089,-541.78,0.00024657,2]
[374466703,1753311053099,-541.78,0.00024657,2]
[374466705,1753311053108,-541.78,0.00024657,2]
[374466707,1753311053117,-541.78,0.00024657,2]
[374466709,1753311053127,-541.78,0.00024657,2]
[374466711,1753311053136,-541.78,0.00024657,2]
[374466713,1753311053145,-541.78,0.00024657,2]
[374466715,1753311053155,-541.78,0.00024657,2]
[374466738,1753311053372,-541.78,0.00024657,2]
[374466740,1753311053383,-541.78,0.00024657,2]
[374466742,1753311053392,-541.78,0.00024657,2]
[374466744,1753311053403,-541.78,0.00024657,2]
[374466746,1753311053413,-541.78,0.00024657,2]
[374466748,1753311053423,-541.78,0.00024657,2]
[374466750,1753311053432,-541.78,0.00024657,2]
[374466752,1753311053442,-541.78,0.00024657,2]
[374466754,1753311053451,-702.75,0.00024657,2]
[374466756,1753311053460,-591.4,0.00024657,2]
[374466758,1753311053469,-985.94,0.00024657,2]
[374466760,1753311053479,-615.42,0.00024657,2]
[374466762,1753311053488,-200.0,0.00024658,2]
[374466764,1753311053497,-200.0,0.00024658,15]
[374466766,1753311053506,-151.38205073,0.00024658,2]
[374466768,1753311053516,-151.0,0.00024658,2]
[374466770,1753311053526,-151.0,0.00024658,2]
[374466772,1753311053535,-151.0,0.00024658,2]
[374466774,1753311053544,-551.0,0.00024658,2]
[374466776,1753311053553,-500.0,0.00024658,2]
[374466778,1753311053563,-151.0,0.00024658,2]
[374466780,1753311053572,-151.17869458,0.00024658,2]
[374466782,1753311053583,-151.0,0.00024658,2]
[374466784,1753311053592,-151.0,0.00024658,2]
[374466786,1753311053601,-151.0,0.00024658,2]
[374466788,1753311053610,-151.0,0.00024658,2]
[374466790,1753311053619,-184.94735063,0.00024658,2]
[374466792,1753311053628,-151.0,0.00024658,2]
[374466794,1753311053638,-151.0,0.00024658,2]
[374466796,1753311053647,-151.0,0.00024658,2]
[374466798,1753311053656,-151.0,0.00024658,2]
[374466800,1753311053665,-642.0,0.00024658,2]
[374466802,1753311053675,-245.0,0.00024658,2]
[374466803,1753311053684,-151.0,0.00024658,2]
[374466805,1753311053694,-1000.0,0.0002466,5]
[374466807,1753311053703,-1000.0,0.0002468,5]